{"text_format":"1","workbook":"xlsx","n_sheets":5,"sheets":["Situation familiale","Situation professionnelle Mr","Situation professionnelle Mme","Calcul Prime activité","Données annuelles actualisées"],"not_rendered":{"charts":0,"images":1,"macros":1,"external_links":0,"defined_names":0,"comments":3,"pivot_tables":0},"unopened":[],"bounds":{"document_bytes":16777216,"sheet_cells":100000,"rows_first":2000,"rows_last":500,"rows_between":2000,"halvings":0,"cell_chars":16384,"cell_head_chars":4096},"cells_cut":0,"cells_raw":0,"read":"whole","date_system":"1900"}

{"sheet":"Situation familiale","index":0,"n_rows":24,"n_cols":15,"rows_kept":24,"cut":false,"hidden":false,"merged":[[16,1,18,2],[12,8,12,9],[4,8,4,10],[14,8,14,9],[4,1,4,6],[12,1,12,6],[7,4,9,6]]}
[]
[]
[]
[]
[null,"Situation familiale",null,null,null,null,null,null,"Montants Forfaitaires  - Situation Familiale - au 01/04/2018 (1)"]
[null,null,null,null,null,null,null,null,"Nbre d'enfants ou de personnes à charge","Vous vivez seul (*)","Vous vivez en couple",null,null,"seul"]
[null,"Vous vivez:","seul",null,null,null,null,null,0,{"$f":"'Données annuelles actualisées'!B2","v":531.51},{"$f":"J7+(J7*50%)","v":797.26499999999999},null,null,"en couple"]
[null,null,null,null,{"$f":"IF(D9=\"oui\",\"Le montant de la PA peut être majoré pour un parent isolé, suivant conditions particulières. Veuillez vous rapprocher de votre CAF.\",\"\")","v":""},null,null,null,1,{"$f":"K7","v":797.26499999999999},{"$f":"J8+(J7*30%)","v":956.71799999999996}]
[null,"Vous attendez un enfant ",null,"non",null,null,null,null,2,{"$f":"K8","v":956.71799999999996},{"$f":"J9+(J7*30%)","v":1116.171}]
[null,null,null,null,null,null,null,null,"Par enfant ou personne en plus",{"$f":"J7*40%","v":212.60400000000001},{"$f":"J10","v":212.60400000000001}]
[null,"Nb de personnes à charge ",null,0,null,null,null,null,"(*) ces montants peuvent être majorés, sous certaines conditions, pour les personnes seules"]
[null,null,null,null,null,null,null,null,"assurant la charge d'un enfant né ou à naitre.",null,null,null,null,0,"oui"]
[null,"Hébergement",null,null,null,null,null,null,"Montant forfaitaire correspondant à votre situation --------------->",null,{"$f":"IF(AND(C7=\"seul\",D11=0),J7,IF(AND(C7=\"en couple\",D11=0),K7,IF(AND(C7=\"seul\",D11=1),J8,IF(AND(C7=\"en couple\",D11=1),K8,IF(AND(C7=\"seul\",D11=2),J9,IF(AND(C7=\"en couple\",D11=2),K9,IF(AND(C7=\"seul\",D11>=3),J9+((D11-2)*J10),IF(AND(C7=\"en couple\",D11>=3),K9+((D11-2)*K10),0))))))))","v":531.51},null,null,1,"non"]
[null,null,null,null,null,null,null,null,null,null,null,null,null,2]
[null,"Vous êtes propriétaire de votre logement ou logés gratuitement : ",null,null,null,null,"non",null,"Forfait logement - au 01/04/2017 (2)",null,null,null,null,3]
[null,null,null,null,null,null,null,null,"Personne seule (12% de 531,51€)",{"$f":"J7*12%","v":63.781199999999998},null,null,null,4]
[null,"Aides au logement versées par votre CAF durant les 3 derniers mois",null,"Mois 1",null,null,null,null,"Deux personnes (16% de 797,27€)",{"$f":"K7*16%","v":127.5624},null,null,null,5]
[null,null,null,"Mois 2",null,null,null,null,"Trois personnes ou plus (16,5% de 956,72€)",{"$f":"K8*16.5%","v":157.85847000000001}]
[null,null,null,"Mois 3",null,null,null,null,null,null,null,null,null,null,{"$f":"SUM(E17:E19)","v":0}]
[null,null,null,null,null,null,null,null,"Forfait logement retenu dans votre cas ---->",{"$f":"IF(AND(AND(C7=\"seul\",D11>1,G15=\"oui\")),J18,IF(AND(AND(C7=\"seul\",G15=\"oui\",D11=1)),J17,IF(AND(AND(C7=\"seul\",O19>0,D11=1)),J17,IF(AND(AND(C7=\"en couple\",G15=\"oui\",D11>=1)),J18,IF(AND(G15=\"oui\",C7=\"seul\"),J16,IF(AND(G15=\"oui\",C7=\"en couple\"),J17,IF(AND(G15=\"non\",O19=0),0,IF(AND(C7=\"seul\",D11=0),J16,IF(AND(C7=\"en couple\",D11=0),J17,IF(AND(C7=\"seul\",D11=1),J17,IF(AND(C7=\"en couple\",D11>=1),J18,IF(AND(C7=\"seul\",D11>1),J18,0))))))))))))","v":0}]
[]
[null,"©UPSME - juin 2018",null,null,null,null,null,null,"(1) Décret n° 2015-1710 du 21 décembre 2015 relatif à la prime d'activité - Article L.842-3 du Code de la sécurité sociale"]
[null,null,null,null,null,null,null,null," et Décret n° 2018-323 du 3 mai 2018 portant revalorisation du montant forfaitaire de la prime d'activité."]
[null,null,null,null,null,null,null,null,"(2) Décret n° 2015-1709 du 21 décembre 2015 relatif à a prime d'activité - Article R844-3 du Code de la sécurité sociale"]

{"sheet":"Situation professionnelle Mr","index":1,"n_rows":26,"n_cols":16,"rows_kept":26,"cut":false,"hidden":false,"merged":[[2,1,2,14],[4,9,5,14],[20,12,20,14],[7,12,8,14],[9,12,9,13],[12,12,12,14],[13,13,13,14],[14,13,14,14],[15,13,15,14],[16,6,16,7],[20,2,20,3],[20,4,20,5],[20,6,20,7],[19,1,19,9],[17,1,17,3],[17,4,17,7],[20,8,20,9],[21,2,21,3],[22,2,22,3],[23,2,23,3],[21,4,21,5],[21,8,21,9],[22,8,22,9],[23,8,23,9],[22,4,22,5],[23,4,23,5],[21,6,21,7],[22,6,22,7],[23,6,23,7],[4,5,5,5],[16,2,16,3],[16,4,16,5],[4,6,5,7],[12,9,12,10],[15,2,15,3],[15,4,15,5],[15,6,15,7],[7,9,7,10],[7,1,7,7],[8,2,8,7],[9,2,9,3],[9,4,9,5],[9,6,9,7],[5,1,5,2]]}
[]
[]
[null,"Situation professionnelle - Monsieur"]
[null,"1°) Indiquez si votre activité principale exercée relève : ",null,null,"2)° Indiquez votre dernier chiffre d'affaires connu :"]
[null,null,null,null,null,2018,0,null,null,{"$f":"IF(AND(B6=\"des prestations de services\",G5>33200),\"Votre CA ne vous permet pas de continuer l'étude de vos droits à la prime d'activité\",IF(AND(B6=\"des activités libérales RSI et CIPAV\",G5>33200),\"Votre CA ne vous permet pas de continuer l'étude de vos droits à la prime d'activité\",IF(AND(B6=\"des activités de vente\",G5>82800),\"Votre CA ne vous permet pas de continuer l'étude de vos droits à la prime d'activité\",\"Vous pouvez continuez l'étude de vos droits à la prime d'activité\")))","v":"Vous pouvez continuez l'étude de vos droits à la prime d'activité"},{"$f":"IF(AND(G4=\"des prestations de services\",L3>32900),\"Votre CA ne vous permet pas de continuer l'étude de vos droits à la prime d'activité\",IF(AND(G4=\"des activités libérales RSI et CIPAV\",L3>32900),\"Votre CA ne vous permet pas de continuer l'étude de vos droits à la prime d'activité\",IF(AND(G4=\"des activités de vente\",L3>82200),\"Votre CA ne vous permet pas de continuer l'étude de vos droits à la prime d'activité\",\"Vous pouvez continuez l'étude de vos droits à la prime d'activité\")))","v":"Vous pouvez continuez l'étude de vos droits à la prime d'activité"},"Vous pouvez continuez l'étude de vos droits à la prime d'activité","Vous pouvez continuez l'étude de vos droits à la prime d'activité","Vous pouvez continuez l'étude de vos droits à la prime d'activité","Vous pouvez continuez l'étude de vos droits à la prime d'activité","des prestations de services"]
[null,"des prestations de services",null,null,null,null,null,null,null,{"$f":"IF(AND(F5=\"des prestations de services\",K4>32900),\"Votre CA ne vous permet pas de continuer l'étude de vos droits à la prime d'activité\",IF(AND(F5=\"des activités libérales RSI et CIPAV\",K4>32900),\"Votre CA ne vous permet pas de continuer l'étude de vos droits à la prime d'activité\",IF(AND(F5=\"des activités de vente\",K4>82200),\"Votre CA ne vous permet pas de continuer l'étude de vos droits à la prime d'activité\",\"Vous pouvez continuez l'étude de vos droits à la prime d'activité\")))","v":"Vous pouvez continuez l'étude de vos droits à la prime d'activité"},"Vous pouvez continuez l'étude de vos droits à la prime d'activité","Vous pouvez continuez l'étude de vos droits à la prime d'activité","Vous pouvez continuez l'étude de vos droits à la prime d'activité","Vous pouvez continuez l'étude de vos droits à la prime d'activité","Vous pouvez continuez l'étude de vos droits à la prime d'activité","des activités de vente"]
[null,null,null,null,null,null,null,null,null,null,null,null,null,null,null,"des activités libérales RSI et CIPAV"]
[null,"Revenus micro-entrepreneur",null,null,null,null,null,null,null,"Revenus salariés nets",null,null,"Revenus de placement ou du patrimoine"]
[null,null,"Ventilation du chiffre d'affaires par activité",null,null,null,null,null,null,"Mois 1",0]
[null,null,"Ventes (BIC - 71%)",null,"Services (BIC - 50%)",null,"Libéral (BNC - 34%)",null,null,"Mois 2",0,null,2014,null,0]
[null,null,"CA","Revenus","CA","Revenus","CA","Revenus",null,"Mois 3",0]
[null,"Mois 1",null,{"$f":"C12-(C12*71%)","v":0},null,{"$f":"E12-(E12*50%)","v":0},null,{"$f":"G12-(G12*34%)","v":0}]
[null,"Mois 2",null,{"$f":"C13-(C13*71%)","v":0},null,{"$f":"E13-(E13*50%)","v":0},null,{"$f":"G13-(G13*34%)","v":0},null,"Revenus de remplacement",null,null,"Prestations sociales",null,null,2018]
[null,"Mois 3",null,{"$f":"C14-(C14*71%)","v":0},null,0,null,{"$f":"G14-(G14*34%)","v":0},null,"Mois 1",0,null,"Mois 1",0,null,2019]
[null,"Total",{"$f":"SUM(C12:C14)","v":0},{"$f":"SUM(D12:D14)","v":0},0,0,{"$f":"SUM(G12:G14)","v":0},0,null,"Mois 2",0,null,"Mois 2",0,null,2020]
[null,"CA moyen du trimestre",{"$f":"C15/3","v":0},null,{"$f":"E15/3","v":0},null,{"$f":"G15/3","v":0},null,null,"Mois 3",0,null,"Mois 3",0]
[null,"Revenus moyens trimestre",{"$f":"D15/3","v":0},null,{"$f":"F15/3","v":0},null,{"$f":"H15/3","v":0}]
[null,"Revenu non-salarié total moyen du trimestre",null,null,{"$f":"C17+E17+G17","v":0}]
[]
[null,"Calcul de la bonification sur les revenus d'activités salariée et non salariée"]
[null,null,"Non salariés",null,"Salariés",null,"Total",null,"Bonification"]
[null,"Mois 1",{"$f":"E18","v":0},null,{"$f":"K9","v":0},null,{"$f":"SUM(C22:F22)","v":0},null,{"$f":"IF(G22<'Données annuelles actualisées'!C1,0,IF(G22>='Données annuelles actualisées'!D1,'Données annuelles actualisées'!C2,IF(AND(G22>'Données annuelles actualisées'!C1,G22<'Données annuelles actualisées'!D1),((G22-'Données annuelles actualisées'!C1)/('Données annuelles actualisées'!D1-'Données annuelles actualisées'!C1))*'Données annuelles actualisées'!C2,0)))","v":0}]
[null,"Mois 2",{"$f":"E18","v":0},null,{"$f":"K10","v":0},null,{"$f":"SUM(C23:F23)","v":0},null,{"$f":"IF(G23<'Données annuelles actualisées'!C1,0,IF(G23>='Données annuelles actualisées'!D1,'Données annuelles actualisées'!C2,IF(AND(G23>'Données annuelles actualisées'!C1,G23<'Données annuelles actualisées'!D1),((G23-'Données annuelles actualisées'!C1)/('Données annuelles actualisées'!D1-'Données annuelles actualisées'!C1))*'Données annuelles actualisées'!C2,0)))","v":0}]
[null,"Mois 3",{"$f":"E18","v":0},null,{"$f":"K11","v":0},null,0,null,{"$f":"IF(G24<'Données annuelles actualisées'!C1,0,IF(G24>='Données annuelles actualisées'!D1,'Données annuelles actualisées'!C2,IF(AND(G24>'Données annuelles actualisées'!C1,G24<'Données annuelles actualisées'!D1),((G24-'Données annuelles actualisées'!C1)/('Données annuelles actualisées'!D1-'Données annuelles actualisées'!C1))*'Données annuelles actualisées'!C2,0)))","v":0}]
[]
[null,"© UPSME - juin 2018"]

{"sheet":"Situation professionnelle Mme","index":2,"n_rows":26,"n_cols":16,"rows_kept":26,"cut":false,"hidden":false,"merged":[[2,1,2,14],[4,9,5,14],[7,12,8,14],[9,12,9,13],[12,12,12,14],[4,5,5,5],[4,6,5,7],[7,1,7,7],[7,9,7,10],[5,1,5,2],[13,13,13,14],[14,13,14,14],[15,13,15,14],[17,11,23,12],[8,2,8,7],[19,1,19,9],[9,2,9,3],[9,4,9,5],[9,6,9,7],[12,9,12,10],[15,2,15,3],[15,4,15,5],[15,6,15,7],[16,2,16,3],[16,4,16,5],[16,6,16,7],[17,1,17,3],[17,4,17,7],[20,2,20,3],[20,4,20,5],[20,6,20,7],[20,8,20,9],[21,2,21,3],[21,4,21,5],[21,6,21,7],[21,8,21,9],[22,2,22,3],[22,4,22,5],[22,6,22,7],[22,8,22,9],[23,2,23,3],[23,4,23,5],[23,6,23,7],[23,8,23,9]]}
[]
[]
[null,"Situation professionnelle - Madame"]
[null,"1°) Indiquez si votre activité principale exercée relève : ",null,null,"2)° Indiquez votre dernier chiffre d'affaires connu :"]
[null,null,null,null,null,2019,0,null,null,{"$f":"IF(AND(B6=\"des prestations de services\",G5>33200),\"Votre CA ne vous permet pas de continuer l'étude de vos droits à la prime d'activité\",IF(AND(B6=\"des activités libérales RSI et CIPAV\",G5>33200),\"Votre CA ne vous permet pas de continuer l'étude de vos droits à la prime d'activité\",IF(AND(B6=\"des activités de vente\",G5>82800),\"Votre CA ne vous permet pas de continuer l'étude de vos droits à la prime d'activité\",\"Vous pouvez continuez l'étude de vos droits à la prime d'activité\")))","v":"Vous pouvez continuez l'étude de vos droits à la prime d'activité"},{"$f":"IF(AND(G4=\"des prestations de services\",L3>32900),\"Votre CA ne vous permet pas de continuer l'étude de vos droits à la prime d'activité\",IF(AND(G4=\"des activités libérales RSI et CIPAV\",L3>32900),\"Votre CA ne vous permet pas de continuer l'étude de vos droits à la prime d'activité\",IF(AND(G4=\"des activités de vente\",L3>82200),\"Votre CA ne vous permet pas de continuer l'étude de vos droits à la prime d'activité\",\"Vous pouvez continuez l'étude de vos droits à la prime d'activité\")))","v":"Vous pouvez continuez l'étude de vos droits à la prime d'activité"},"Vous pouvez continuez l'étude de vos droits à la prime d'activité","Vous pouvez continuez l'étude de vos droits à la prime d'activité","Vous pouvez continuez l'étude de vos droits à la prime d'activité","Vous pouvez continuez l'étude de vos droits à la prime d'activité","des prestations de services"]
[null,"des prestations de services",null,null,null,null,null,null,null,{"$f":"IF(AND(F5=\"des prestations de services\",K4>32900),\"Votre CA ne vous permet pas de continuer l'étude de vos droits à la prime d'activité\",IF(AND(F5=\"des activités libérales RSI et CIPAV\",K4>32900),\"Votre CA ne vous permet pas de continuer l'étude de vos droits à la prime d'activité\",IF(AND(F5=\"des activités de vente\",K4>82200),\"Votre CA ne vous permet pas de continuer l'étude de vos droits à la prime d'activité\",\"Vous pouvez continuez l'étude de vos droits à la prime d'activité\")))","v":"Vous pouvez continuez l'étude de vos droits à la prime d'activité"},"Vous pouvez continuez l'étude de vos droits à la prime d'activité","Vous pouvez continuez l'étude de vos droits à la prime d'activité","Vous pouvez continuez l'étude de vos droits à la prime d'activité","Vous pouvez continuez l'étude de vos droits à la prime d'activité","Vous pouvez continuez l'étude de vos droits à la prime d'activité","des activités de vente"]
[null,null,null,null,null,null,null,null,null,null,null,null,null,null,null,"des activités libérales RSI et CIPAV"]
[null,"Revenus micro-entrepreneur",null,null,null,null,null,null,null,"Revenus salariés nets",null,null,"Revenus de placement ou du patrimoine"]
[null,null,"Ventilation du chiffre d'affaires par activité",null,null,null,null,null,null,"Mois 1",0]
[null,null,"Ventes (BIC - 71%)",null,"Services (BIC - 50%)",null,"Libéral (BNC - 34%)",null,null,"Mois 2",0,null,2014,null,0]
[null,null,"CA","Revenus","CA","Revenus","CA","Revenus",null,"Mois 3",0]
[null,"Mois 1",null,{"$f":"C12-(C12*71%)","v":0},null,{"$f":"E12-(E12*50%)","v":0},null,{"$f":"G12-(G12*34%)","v":0}]
[null,"Mois 2",null,{"$f":"C13-(C13*71%)","v":0},null,{"$f":"E13-(E13*50%)","v":0},null,{"$f":"G13-(G13*34%)","v":0},null,"Revenus de remplacement",null,null,"Prestations sociales",null,null,2018]
[null,"Mois 3",null,0,null,0,null,0,null,"Mois 1",0,null,"Mois 1",0,null,2019]
[null,"Total",{"$f":"SUM(C12:C14)","v":0},0,0,0,0,0,null,"Mois 2",0,null,"Mois 2",0,null,2020]
[null,"CA moyen du trimestre",{"$f":"C15/3","v":0},null,{"$f":"E15/3","v":0},null,{"$f":"G15/3","v":0},null,null,"Mois 3",0,null,"Mois 3",0]
[null,"Revenus moyens trimestre",{"$f":"D15/3","v":0},null,{"$f":"F15/3","v":0},null,{"$f":"H15/3","v":0}]
[null,"Revenu non-salarié total moyen du trimestre",null,null,{"$f":"C17+E17+G17","v":0}]
[]
[null,"Calcul de la bonification sur les revenus d'activités salariée et non salariée"]
[null,null,"Non salariés",null,"Salariés",null,"Total",null,"Bonification"]
[null,"Mois 1",{"$f":"E18","v":0},null,{"$f":"K9","v":0},null,{"$f":"SUM(C22:F22)","v":0},null,{"$f":"IF(G22<'Données annuelles actualisées'!C1,0,IF(G22>='Données annuelles actualisées'!D1,'Données annuelles actualisées'!C2,IF(AND(G22>'Données annuelles actualisées'!C1,G22<'Données annuelles actualisées'!D1),((G22-'Données annuelles actualisées'!C1)/('Données annuelles actualisées'!D1-'Données annuelles actualisées'!C1))*'Données annuelles actualisées'!C2,0)))","v":0}]
[null,"Mois 2",{"$f":"E18","v":0},null,{"$f":"K10","v":0},null,{"$f":"SUM(C23:F23)","v":0},null,{"$f":"IF(G23<'Données annuelles actualisées'!C1,0,IF(G23>='Données annuelles actualisées'!D1,'Données annuelles actualisées'!C2,IF(AND(G23>'Données annuelles actualisées'!C1,G23<'Données annuelles actualisées'!D1),((G23-'Données annuelles actualisées'!C1)/('Données annuelles actualisées'!D1-'Données annuelles actualisées'!C1))*'Données annuelles actualisées'!C2,0)))","v":0}]
[null,"Mois 3",{"$f":"E18","v":0},null,{"$f":"K11","v":0},null,0,null,{"$f":"IF(G24<'Données annuelles actualisées'!C1,0,IF(G24>='Données annuelles actualisées'!D1,'Données annuelles actualisées'!C2,IF(AND(G24>'Données annuelles actualisées'!C1,G24<'Données annuelles actualisées'!D1),((G24-'Données annuelles actualisées'!C1)/('Données annuelles actualisées'!D1-'Données annuelles actualisées'!C1))*'Données annuelles actualisées'!C2,0)))","v":0}]
[]
[null,"© UPSME - juin 2018"]

{"sheet":"Calcul Prime activité","index":3,"n_rows":24,"n_cols":8,"rows_kept":24,"cut":false,"hidden":false,"merged":[[21,1,21,7],[16,1,17,1],[18,2,18,7],[19,2,19,7],[18,1,19,1],[1,2,1,7],[1,1,3,1],[2,2,2,3],[2,4,2,5],[2,6,2,7]]}
[]
[null,"Eléments financiers ","Simulation prime d'activité - spécial micro-entrepreneur"]
[null,null,"Mois 1",null,"Mois 2",null,"Mois 3"]
[null,null,"Etape A","Etape B","Etape A","Etape B","Etape A","Etape B"]
[null,"Montant forfaitaire",{"$f":"'Situation familiale'!K13","v":531.51},{"$f":"C5","v":531.51},{"$f":"'Situation familiale'!K13","v":531.51},{"$f":"E5","v":531.51},{"$f":"'Situation familiale'!K13","v":531.51},{"$f":"G5","v":531.51}]
[null,"Revenus professionnels (62%)",{"$f":"C11*62%","v":0},null,{"$f":"E11*62%","v":0},null,{"$f":"G11*62%","v":0}]
[null,"Bonification",{"$f":"'Situation professionnelle Mr'!I22+'Situation professionnelle Mme'!I22","v":0},null,{"$f":"'Situation professionnelle Mr'!I23+'Situation professionnelle Mme'!I23","v":0},null,{"$f":"'Situation professionnelle Mr'!I24+'Situation professionnelle Mme'!I24","v":0}]
[]
[null,"Total ",{"$f":"SUM(C5:C7)","v":531.51},{"$f":"SUM(D5:D7)","v":531.51},531.51,531.51,531.51,531.51]
[]
[null,"Revenus professionnels (100%)",{"$f":"'Situation professionnelle Mr'!K9+'Situation professionnelle Mme'!K9+'Situation professionnelle Mr'!E18+'Situation professionnelle Mme'!E18","v":0},{"$f":"C11","v":0},{"$f":"'Situation professionnelle Mr'!K10+'Situation professionnelle Mme'!K10+'Situation professionnelle Mme'!E18+'Situation professionnelle Mr'!E18","v":0},{"$f":"E11","v":0},{"$f":"'Situation professionnelle Mr'!K11+'Situation professionnelle Mr'!E18+'Situation professionnelle Mme'!K11+'Situation professionnelle Mme'!E18","v":0},{"$f":"G11","v":0}]
[null,"Revenus de remplacement",{"$f":"'Situation professionnelle Mr'!K14+'Situation professionnelle Mr'!N14+'Situation professionnelle Mme'!K14+'Situation professionnelle Mme'!N14+'Situation professionnelle Mr'!O10/12+'Situation professionnelle Mme'!O10/12","v":0},{"$f":"C12","v":0},{"$f":"'Situation professionnelle Mr'!K15+'Situation professionnelle Mr'!N15+'Situation professionnelle Mme'!K15+'Situation professionnelle Mme'!N15+'Situation professionnelle Mr'!O10/12+'Situation professionnelle Mme'!O10/12","v":0},{"$f":"E12","v":0},{"$f":"'Situation professionnelle Mr'!K16+'Situation professionnelle Mr'!N16+'Situation professionnelle Mme'!K16+'Situation professionnelle Mme'!N16+'Situation professionnelle Mr'!O10/12+'Situation professionnelle Mme'!O10/12","v":0},{"$f":"G12","v":0}]
[null,"Forfait logement",{"$f":"'Situation familiale'!J20","v":0},{"$f":"C13","v":0},{"$f":"C13","v":0},{"$f":"E13","v":0},{"$f":"C13","v":0},{"$f":"G13","v":0}]
[]
[null,"Total",{"$f":"SUM(C11:C13)","v":0},{"$f":"SUM(D11:D13)","v":0},0,0,0,0]
[]
[null,"Résultat mois par mois",{"$f":"C9-C15","v":531.51},{"$f":"D9-D15","v":531.51},531.51,531.51,531.51,531.51]
[null,null,"PA mois 1",{"$f":"IF(D17>0,C17-D17,IF(AND(C17<=0,D17<=0),0,C17))","v":0},"PA mois 2",{"$f":"IF(F17>0,E17-F17,IF(AND(E17<=0,F17<=0),0,E17))","v":0},"PA mois 3",{"$f":"IF(H17>0,G17-H17,IF(AND(G17<=0,H17<=0),0,G17))","v":0}]
[null,"Résultat final","Prime d'activité versée pour les trois mois suivants"]
[null,null,{"$f":"(D18+F18+H18)/3","v":0}]
[]
[null,"Nouvelle simulation ? Cliquez ici"]
[]
[null,"© UPSME - Juin 2018"]

{"sheet":"Données annuelles actualisées","index":4,"n_rows":2,"n_cols":4,"rows_kept":2,"cut":false,"hidden":false,"merged":[]}
["Smic horaire",9.8800000000000008,{"$f":"B1*59","v":582.92000000000007},{"$f":"B1*95","v":938.6}]
["Montant forfaitaire",531.51,{"$f":"B2*12.782%","v":67.9376082}]